bitfinex/quotes_ETHUSD_20260131
["timestamp","ask_amount","ask_price","bid_price","bid_amount"]
[1769875045503,14.46441197,2540.5,2539.3,0.98452131]
[1769875045686,14.46441197,2540.5,2539.3,14.29333864]
[1769875045895,14.46441197,2540.5,2539.3,13.30881733]
[1769875046069,0.1024,2540.4,2539.0,13.30881733]
[1769875046272,13.4646391,2540.3,2539.0,14.29345424]
[1769875046495,13.4646391,2540.3,2539.0,13.30881733]
[1769875046773,15.84535372,2540.3,2539.0,14.29345201]
[1769875046974,0.98417447,2540.2,2539.7,0.0011]
[1769875047174,0.825,2540.1,2539.7,0.0011]
[1769875047484,1.33193063,2540.0,2539.7,0.0011]
[1769875047875,1.33193063,2540.0,2539.0,13.30881733]
[1769875047876,1.33193063,2540.0,2539.0,14.29345541]
[1769875048718,14.79656973,2540.0,2538.9,0.98465056]
[1769875049015,0.98429072,2539.9,2538.8,3.93881291]
[1769875049181,0.98429072,2539.9,2538.8,3.54522604]
[1769875049510,15.43644143,2539.8,2538.8,3.54522604]
[1769875049674,15.43644143,2539.8,2538.8,16.85404337]
[1769875049873,15.43644143,2539.8,2538.8,13.30881733]
[1769875050097,15.43644143,2539.8,2538.7,0.98473368]
[1769875050475,15.43644143,2539.8,2538.6,0.9847815]
[1769875050673,13.4646391,2539.6,2538.6,0.9847815]
[1769875050870,14.2896391,2539.5,2538.7,0.98474848]
[1769875051090,15.2740874,2539.5,2538.4,14.29368969]
[1769875051575,15.2740874,2539.5,2538.3,0.9849018]
[1769875051985,0.2055,2537.5,2536.8,3.94184426]
[1769875052183,0.2055,2537.5,2536.5,0.825]
[1769875052184,13.65803909,2537.5,2536.5,0.20555595]
[1769875052383,16.73951054,2537.4,2536.5,0.20555595]
[1769875052678,16.73951054,2537.4,2535.5,14.29478181]
[1769875052679,0.01571462,2537.1,2535.5,14.29478181]
[1769875052872,13.4646391,2537.1,2535.8,3.94349831]
[1769875053074,13.4646391,2536.1,2534.7,0.27975811]
[1769875053298,0.01571462,2536.2,2534.4,14.2952404]
[1769875053299,0.01571462,2535.4,2534.4,14.2952404]
[1769875053497,2.52996157,2536.3,2534.6,13.30881733]
[1769875053806,14.41994099,2536.2,2534.6,13.30881733]
[1769875054005,13.48035372,2535.8,2534.1,0.825]
[1769875054205,0.1024,2536.1,2534.3,3.94580292]
[1769875054406,0.1024,2536.1,2534.0,0.98654833]
[1769875054407,13.4646391,2535.5,2534.0,0.98654833]
[1769875054575,0.825,2535.6,2534.3,0.98643761]
[1769875054773,14.2896391,2535.6,2534.0,0.98657723]
[1769875054979,0.9860377,2535.4,2533.7,14.29551662]
[1769875055180,14.4506768,2535.4,2533.7,13.02292364]
[1769875055418,15.46446148,2535.3,2533.8,1.38479236]
[1769875055575,15.46446148,2535.3,2533.6,0.98672421]
[1769875055977,0.01571462,2534.9,2532.7,7.48050597]
[1769875056202,0.825,2534.8,2533.1,13.31565071]
[1769875056405,0.01571462,2534.7,2533.4,0.9868081]
[1769875056577,0.01571462,2534.7,2533.4,0.9868057]
[1769875056802,0.01571462,2534.3,2533.1,0.00683338]
[1769875057000,13.84998555,2534.6,2533.2,0.98689404]
[1769875057001,0.98645137,2534.4,2533.2,0.98689404]
[1769875057203,0.98645137,2534.4,2532.5,0.98714752]
[1769875057204,13.84998555,2534.2,2532.5,0.98714752]
[1769875057406,0.826,2534.3,2533.1,0.98692116]
[1769875057834,0.55959623,2534.5,2533.1,0.98692116]
[1769875058068,1.43053537,2534.4,2533.2,0.49346532]
[1769875058338,0.01571462,2535.3,2533.3,13.30012632]
[1769875058499,0.01571462,2535.3,2533.2,0.49346532]
[1769875058500,14.83623177,2534.9,2533.2,0.49346532]
[1769875058701,13.84998555,2534.5,2533.4,0.0011]
[1769875058929,0.01571462,2534.6,2532.1,3.96677061]
[1769875058930,0.98662141,2533.9,2533.1,0.0011]
[1769875059095,0.01571462,2533.3,2532.1,0.0175426]
[1769875059297,13.86570017,2533.3,2532.1,0.0186426]
[1769875059521,0.01571462,2532.9,2532.1,0.0186426]
[1769875059737,0.01571462,2532.9,2529.7,14.05481549]
[1769875059738,13.86570017,2531.9,2529.7,14.05481549]
[1769875059897,0.01571462,2531.3,2529.8,1.40548155]
[1769875060228,4.3906506,2532.4,2530.8,13.06655602]
[1769875060447,13.86570017,2534.1,2531.4,13.06655602]
[1769875060593,13.86570017,2534.1,2531.3,7.49622059]
[1769875060594,0.28302122,2533.9,2532.0,13.06655602]
[1769875060796,1.81226805,2533.9,2532.1,15.94726222]
[1769875061052,0.01571462,2533.5,2532.2,0.98728378]
[1769875061230,0.01571462,2532.8,2531.0,13.22076604]
[1769875061528,1.79655343,2533.9,2532.1,14.2080547]
[1769875061727,0.28302122,2533.9,2532.2,14.28033634]
[1769875061928,0.98645901,2534.4,2532.6,0.2335703]
[1769875062229,13.00936658,2534.3,2532.4,0.2335703]
[1769875062427,13.00936658,2534.3,2532.3,14.28033634]
[1769875062428,12.90696658,2534.3,2532.3,14.28033634]
[1769875062630,1.52667127,2534.2,2532.8,13.22076604]
[1769875062931,13.00936658,2534.7,2532.9,13.47005096]
[1769875062932,12.90696658,2534.7,2532.9,13.47005096]
[1769875063122,12.90696658,2534.7,2533.0,0.98697196]
[1769875063317,1.29069666,2534.6,2533.1,1.83891962]
[1769875063499,13.00936658,2534.8,2533.1,1.83891962]
[1769875063699,12.90696658,2534.5,2533.0,0.98697196]
[1769875063918,1.00196697,2534.9,2533.0,0.98697196]
[1769875064117,0.98625235,2534.9,2533.0,0.98697196]
[1769875064348,12.90696658,2534.7,2533.0,0.98697196]
[1769875064501,0.98625235,2534.9,2532.9,0.98698584]
[1769875064502,13.00936658,2534.5,2532.9,0.98698584]
[1769875065109,0.1024,2534.3,2532.5,14.20793287]
[1769875065313,12.90696658,2534.1,2532.5,0.98716683]
[1769875065515,12.90696658,2534.0,2532.5,0.98716683]
[1769875065703,1.29069666,2533.9,2532.5,1.62355361]
[1769875066407,12.90696658,2533.5,2532.2,0.98727706]
[1769875066602,12.90696658,2533.5,2531.6,17.17075692]
[1769875066826,12.90696658,2533.5,2532.4,0.9871817]
[1769875067206,0.98668972,2533.8,2531.9,13.22076604]
[1769875067540,1.29069666,2533.9,2532.4,0.2335703]
[1769875067706,0.98657011,2534.1,2532.3,14.04776604]
[1769875068234,12.90696658,2534.3,2532.4,0.2335703]
[1769875068604,0.9294,2534.6,2532.4,13.47005096]
[1769875068804,0.98631001,2534.7,2532.9,13.22076604]
[1769875069036,0.74673729,2534.6,2533.0,14.54441411]
[1769875069202,0.54245538,2534.6,2533.1,0.986933]
[1769875069407,0.827,2535.3,2533.2,14.28133634]
[1769875069628,0.827,2535.3,2533.6,13.22076604]
[1769875069826,1.03130154,2535.3,2533.6,13.22076604]
[1769875070146,1.81308138,2535.3,2533.7,1.3220766]
[1769875070306,13.00936658,2535.2,2533.7,1.3220766]
[1769875070508,12.90696658,2534.7,2533.0,2.3106015]
[1769875070712,12.90696658,2534.7,2533.0,0.98695343]
[1769875070917,0.1024,2535.0,2533.1,0.2335703]
[1769875071113,0.98621853,2535.0,2533.2,0.98689404]
[1769875071332,0.98621853,2535.0,2533.1,17.40191252]
[1769875071333,12.90696658,2534.8,2533.1,0.98690544]
[1769875071523,12.90696658,2534.6,2533.1,1.48038234]
[1769875071837,0.001,2534.4,2533.1,1.48038234]
[1769875072251,0.001,2534.4,2533.2,0.2335703]
[1769875072553,0.001,2534.4,2533.1,0.4934769]
[1769875072713,12.90796658,2534.4,2533.1,0.98693142]
[1769875073140,0.001,2534.4,2532.6,14.20899389]
[1769875073448,0.001,2534.4,2533.0,13.22076604]
[1769875073618,0.001,2534.4,2533.1,14.54284264]
[1769875074144,12.90696658,2534.1,2532.6,0.0011]
[1769875074440,12.90696658,2534.1,2531.6,17.17076744]
[1769875074441,12.90696658,2533.7,2531.6,13.22076604]
[1769875074656,14.1992347,2533.6,2532.1,0.9873003]
[1769875074816,14.1992347,2533.6,2532.2,0.98727465]
[1769875075013,14.1992347,2533.6,2532.2,0.98725854]
[1769875075210,14.1992347,2533.6,2531.7,5.27193365]
[1769875075211,0.98677718,2533.5,2531.8,0.98743976]
[1769875075417,15.31366723,2533.5,2531.9,0.62593734]
[1769875075615,15.31366723,2533.5,2531.7,0.98745691]
[1769875075924,15.31366723,2533.5,2531.7,14.20822295]
[1769875075925,2.40670065,2533.5,2531.7,14.20822295]
[1769875076226,1.41992347,2533.5,2531.8,13.47005096]
[1769875076444,0.98677412,2533.6,2532.0,13.45433634]
[1769875076637,0.98677412,2533.6,2532.0,13.22076604]
[1769875077041,0.98677412,2533.6,2531.9,1.44575079]
[1769875077360,0.1024,2533.8,2532.0,14.2081278]
[1769875077644,0.00577812,2533.7,2532.0,14.2081278]
[1769875078333,0.00577812,2533.7,2532.0,14.18975206]
[1769875078652,0.00577812,2533.7,2532.1,0.827]
[1769875078832,0.00577812,2533.7,2532.2,1.50167521]
[1769875079153,0.98673823,2533.6,2532.3,0.98724479]
[1769875080547,0.00577812,2533.7,2532.5,13.22076604]
[1769875080748,0.00577812,2533.7,2532.6,1.3220766]
[1769875081048,13.91014633,2534.4,2532.6,14.54284264]
[1769875081251,0.98746513,2534.4,2532.7,14.20785491]
[1769875081950,13.89443171,2534.4,2532.7,0.98708887]
[1769875082152,12.90696658,2534.2,2532.5,0.98713915]
[1769875082346,12.90696658,2534.0,2532.5,0.98713915]
[1769875082537,12.90696658,2534.0,2532.6,0.98711773]
[1769875082739,15.27196658,2533.9,2532.4,1.81419767]
[1769875082939,3.89219666,2533.8,2532.5,0.98716188]
[1769875083345,1.52719666,2533.8,2532.5,0.98716188]
[1769875083554,3.00700719,2534.3,2532.5,14.20792792]
[1769875083758,0.001,2534.2,2532.5,14.20792792]
[1769875084329,0.001,2534.2,2532.7,13.22076604]
[1769875084530,0.001,2534.2,2532.8,13.22076604]
[1769875085357,0.001,2534.2,2532.5,0.98716188]
[1769875085358,0.98654354,2534.1,2532.5,0.98716188]
[1769875085561,0.98654354,2534.1,2532.5,2.70794743]
[1769875085761,13.89351012,2534.1,2532.5,2.70794743]
[1769875085958,12.90696658,2534.0,2532.4,1.81419779]
[1769875086867,0.98750834,2534.2,2532.5,13.95474697]
[1769875087050,0.98750834,2534.2,2532.7,13.72117667]
[1769875087563,0.98750834,2534.2,2532.8,0.9870499]
[1769875088237,0.98750834,2534.2,2532.8,0.97051173]
[1769875088660,0.001,2534.4,2533.1,13.73689129]
[1769875088859,1.67659128,2534.5,2533.5,13.72117667]
[1769875089038,1.67659128,2534.5,2532.8,15.5186884]
[1769875089039,0.01571462,2534.3,2532.8,15.5186884]
[1769875089240,0.01571462,2534.4,2533.0,13.72117667]
[1769875089665,0.01571462,2534.4,2533.1,0.986933]
[1769875089860,1.67659128,2534.5,2533.3,13.95474697]
[1769875090035,1.67659128,2534.5,2533.4,1.3954747]
[1769875090372,0.01571462,2534.2,2533.4,1.3954747]
[1769875090567,0.01571462,2534.2,2533.1,0.986933]
[1769875091172,1.67659128,2534.5,2533.3,13.95474697]
[1769875091547,1.00191737,2535.0,2533.6,13.72117667]
[1769875091748,0.01571462,2535.0,2533.8,0.98666035]
[1769875091948,1.0019261,2535.0,2533.8,0.98666035]
[1769875092154,0.01571462,2534.6,2533.7,1.37211767]
[1769875092457,0.0063583,2533.7,2533.5,0.98675523]
[1769875092771,0.0063583,2533.7,2533.2,0.98686122]
[1769875093072,0.0063583,2533.7,2533.0,0.98697169]
[1769875093373,0.01571462,2533.4,2532.3,0.98721269]
[1769875093548,0.01571462,2533.2,2532.4,0.98720397]
[1769875093739,0.01571462,2533.2,2532.0,0.98736176]
[1769875093941,0.01571462,2533.6,2532.1,13.72117667]
[1769875094139,0.0063583,2533.7,2532.1,13.72117667]
[1769875094381,3.94532776,2534.7,2532.8,13.95474697]
[1769875094382,1.00206355,2534.6,2532.8,13.95474697]
[1769875094568,1.00206355,2534.6,2532.0,1.84977412]
[1769875094569,13.98675922,2533.2,2532.0,1.84977412]
[1769875094870,0.01571462,2533.0,2531.9,0.98738878]
[1769875095078,0.01571462,2533.0,2531.8,0.98741517]
[1769875095244,0.01571462,2533.0,2531.7,0.98746943]
[1769875095441,0.01571462,2533.0,2531.3,0.0011]
[1769875095442,2.365,2532.9,2531.3,0.0011]
[1769875095637,0.98712785,2532.6,2531.4,3.95031534]
[1769875095853,0.01571462,2532.5,2531.4,0.98759579]
[1769875096281,0.01571462,2532.5,2531.3,0.0011]
[1769875096447,0.01571462,2532.3,2531.3,0.0011]
[1769875096782,0.01571462,2532.0,2531.3,0.0011]
[1769875096954,0.01571462,2532.2,2531.3,0.0011]
[1769875097282,0.01571462,2532.0,2531.3,0.0011]
[1769875097438,13.9710446,2531.5,2530.4,4.8156501]
[1769875097638,0.98786896,2530.7,2529.2,0.98845484]
[1769875097940,3.35278837,2531.0,2529.3,1.86634509]
[1769875098198,3.36850299,2531.0,2529.3,1.85146074]
[1769875098475,17.33954759,2531.0,2529.3,1.85146074]
[1769875098678,0.01571462,2530.8,2529.3,1.85146074]
[1769875098842,0.01571462,2530.8,2529.4,0.28399156]
[1769875099650,0.01571462,2530.6,2529.5,0.98833761]
[1769875099855,0.9877909,2530.9,2529.5,0.98833761]
[1769875100071,0.9877909,2530.9,2528.9,6.95405289]
[1769875100072,13.9710446,2530.2,2529.1,0.98846172]
[1769875100272,0.01571462,2530.5,2529.2,0.98842961]
[1769875100471,13.98675922,2530.7,2528.5,13.92715388]
[1769875100472,13.9710446,2530.7,2529.4,0.98836669]
[1769875100786,0.98777224,2531.0,2529.4,14.70954336]
[1769875101285,13.9710446,2530.7,2529.3,0.98839201]
[1769875101448,1.39710446,2530.6,2529.2,0.98843486]
[1769875101649,0.98794704,2530.5,2528.7,17.67568013]
[1769875101918,1.00366166,2530.5,2528.7,17.67568013]
[1769875102088,1.00366166,2530.5,2528.7,17.62568013]
[1769875102294,14.97470626,2530.5,2528.7,3.90450346]
[1769875102453,0.63525543,2530.4,2528.8,0.48931538]
[1769875103344,0.01571462,2530.3,2528.8,0.48931538]
[1769875103575,14.60630003,2530.4,2528.8,0.48931538]
[1769875103751,0.63525543,2530.4,2528.8,0.48931538]
[1769875103953,0.98802513,2530.3,2528.9,2.80007165]
[1769875104302,0.20475799,2531.1,2529.9,20.67522956]
[1769875104580,0.20475799,2531.1,2529.9,13.72117667]
[1769875104752,0.98736176,2532.0,2529.9,14.54917667]
[1769875105084,0.98734553,2532.1,2530.6,0.2335703]
[1769875105276,0.98724479,2532.3,2530.5,13.72117667]
[1769875105477,0.01571462,2532.2,2530.0,1.45491767]
[1769875105647,14.95828939,2532.3,2530.3,13.72117667]
[1769875105854,0.98732277,2532.1,2530.5,0.98794704]
[1769875106149,0.01571462,2532.0,2530.5,0.98794704]
[1769875106352,0.01571462,2532.0,2530.4,0.98795825]
[1769875106353,0.01571462,2531.6,2530.4,0.98795825]
[1769875106550,0.01571462,2531.6,2530.4,1.48195809]
[1769875106896,0.01571462,2532.0,2530.4,1.48195809]
[1769875107050,0.01571462,2531.8,2530.4,1.48195809]
[1769875107981,1.48248974,2532.2,2530.5,13.95474697]
[1769875108150,1.49820436,2532.2,2530.5,13.72117667]
[1769875108353,0.54315375,2532.1,2530.6,1.52031348]
[1769875108852,0.54415375,2532.1,2530.6,1.52031348]
[1769875109153,0.54415375,2532.1,2530.7,0.2335703]
[1769875109354,0.001,2532.1,2530.6,13.72117667]
[1769875110263,0.001,2532.1,2530.7,0.98786896]
[1769875110578,0.001,2532.1,2530.8,2.69405215]
[1769875111476,0.001,2532.1,2530.9,0.2335703]
[1769875111778,0.001,2532.1,2530.8,16.41522882]
[1769875112476,0.001,2532.1,2530.9,0.9877909]
[1769875113282,0.001,2532.1,2530.8,3.68185449]
[1769875113481,0.001,2532.1,2530.8,1.81581872]
[1769875113989,0.001,2532.1,2530.8,15.53699539]
[1769875114479,0.001,2532.1,2530.8,1.81581872]
[1769875115381,13.9720446,2532.1,2530.5,0.98792202]
[1769875115686,0.01571462,2531.8,2530.2,0.98804761]
[1769875115985,1.415962,2531.8,2530.3,0.98799431]
[1769875116156,1.415962,2531.8,2530.1,14.54917667]
[1769875116567,0.98747876,2531.7,2530.1,14.54917667]
[1769875116752,0.63533558,2531.6,2530.2,1.69922354]
[1769875118187,0.63533558,2531.6,2530.2,1.68716722]
[1769875118350,13.36534534,2531.4,2529.7,0.98823741]
[1769875118554,13.36534534,2531.2,2529.5,12.94747671]
[1769875118779,13.36534534,2531.2,2529.4,1.81636299]
[1769875118780,0.01571462,2531.0,2529.4,0.828]
[1769875118996,0.01571462,2530.8,2529.1,12.94747671]
[1769875119282,0.01571462,2530.6,2528.8,0.98860533]
[1769875119453,0.01571462,2530.6,2529.0,0.98853261]
[1769875119656,0.01571462,2530.6,2528.9,1.3936082]
[1769875119657,13.36534534,2530.6,2528.9,1.3936082]
[1769875119874,13.36534534,2530.4,2528.9,1.3936082]
[1769875120158,13.36534534,2530.4,2528.8,0.98858369]
[1769875120381,13.36534534,2530.4,2528.7,0.98864825]
[1769875120566,2.32455966,2530.3,2528.7,0.98864825]
[1769875120974,15.23856503,2530.3,2528.7,15.48864825]
[1769875121279,2.32455966,2530.3,2528.7,0.98864825]
[1769875121594,12.91400537,2530.8,2528.9,13.80237505]
[1769875121908,13.74200537,2530.8,2529.1,0.0011]
[1769875122189,1.00350552,2531.0,2529.1,13.80347505]
[1769875122381,1.00350552,2531.0,2529.1,0.0011]
[1769875122382,13.90179627,2531.0,2529.1,0.0011]
[1769875122581,12.91400537,2530.5,2529.1,0.0011]
[1769875122802,0.01571462,2530.2,2529.1,0.0011]
[1769875123103,12.91400537,2529.9,2529.1,0.0011]
[1769875123266,12.91400537,2529.9,2528.2,0.98882289]
[1769875123466,1.292972,2529.8,2528.3,1.48323907]
[1769875123778,1.292972,2529.8,2528.3,1.48321161]
[1769875123998,1.292972,2529.8,2528.3,1.48321594]
[1769875124290,1.292972,2529.8,2528.5,0.9887078]
[1769875124493,3.95245435,2530.1,2528.5,14.79110354]
[1769875125699,3.95245435,2530.1,2528.5,0.98872849]
[1769875126066,0.01571462,2530.0,2528.4,0.98874643]
[1769875126499,0.01571462,2530.0,2528.3,0.49443583]
[1769875126500,0.01571462,2529.8,2528.3,0.49443583]
[1769875126710,12.92971999,2529.4,2527.7,13.80237505]
[1769875127003,12.92971999,2529.4,2526.2,0.8671841]
[1769875127004,0.01571462,2529.3,2527.5,0.98909428]
[1769875127170,1.30868662,2529.3,2527.7,0.98904128]
[1769875127497,1.30868662,2529.3,2527.6,14.5]
[1769875127803,0.01571462,2528.9,2527.6,0.98904581]
[1769875128001,12.92971999,2529.3,2527.9,0.98894746]
[1769875128217,0.01571462,2529.3,2527.8,13.80237505]
[1769875128372,0.01571462,2529.3,2527.5,3.95640806]
[1769875128373,1.00397409,2529.7,2527.9,17.75820398]
[1769875128575,1.00397409,2529.7,2528.0,0.98892405]
[1769875128802,1.00397409,2529.7,2527.9,14.79130966]
[1769875129896,1.00397409,2529.7,2528.0,14.5]
[1769875130398,0.98825947,2529.7,2528.0,28.30237505]
[1769875130597,3.170665,2529.7,2528.2,0.98884581]
[1769875130900,0.98825947,2529.7,2528.3,14.03594535]
[1769875131095,0.98810323,2530.1,2528.3,14.03594535]
[1769875131302,0.98810323,2530.1,2528.3,13.80237505]
[1769875131503,1.80272914,2530.0,2528.4,1.47912209]
[1769875132677,0.98818135,2529.9,2528.4,2.46787791]
[1769875132874,2.77517753,2530.0,2528.4,16.27025296]
[1769875133091,0.98816301,2530.0,2528.4,16.27025296]
[1769875133298,0.84471462,2530.4,2528.8,13.80237505]
[1769875133299,0.98802513,2530.4,2528.8,13.80237505]
[1769875133494,0.98802513,2530.4,2528.9,0.829]
[1769875133495,3.95212569,2530.3,2528.9,0.829]
[1769875133801,0.49401508,2530.2,2529.0,15.96313751]
[1769875134006,0.98800819,2530.4,2529.0,29.76551256]
[1769875134300,0.98782993,2530.8,2529.1,13.70573865]
[1769875134673,0.49543973,2530.9,2529.5,13.80237505]
[1769875134873,0.001,2531.4,2529.8,14.03594535]
[1769875135074,0.001,2531.4,2530.2,13.80237505]
[1769875135279,0.9874432,2531.8,2530.4,13.80237505]
[1769875135502,1.27389908,2532.0,2530.6,13.80237505]
[1769875135809,1.27389908,2532.0,2530.3,0.01571462]
[1769875135810,1.79631452,2532.0,2530.7,30.51161256]
[1769875135984,1.27389908,2532.0,2530.7,29.13137505]
[1769875136304,1.27390212,2532.0,2530.7,15.329]
[1769875136502,1.27390212,2532.0,2530.7,0.829]
[1769875136671,0.98743976,2531.8,2530.7,0.829]
[1769875137791,0.98743976,2531.8,2530.0,0.828]
[1769875137975,0.98743976,2531.8,2530.1,0.98807663]
[1769875138181,0.98743976,2531.8,2530.2,14.5]
[1769875138384,1.83736391,2531.7,2530.3,1.54880766]
[1769875138779,0.98751777,2531.6,2530.3,1.54880766]
[1769875139485,1.83736391,2531.7,2530.3,2.53679581]
[1769875139696,1.27391718,2532.0,2530.4,15.50605463]
[1769875139895,0.28651642,2532.0,2530.5,13.81808967]
[1769875140205,0.28651642,2532.0,2530.7,13.81808967]
[1769875140407,0.001,2532.1,2530.9,0.2335703]
[1769875140590,0.9883336,2532.1,2530.9,13.80237505]
[1769875140780,0.001,2532.1,2531.0,1.46303751]
[1769875140980,0.001,2532.1,2530.9,0.9877908]
[1769875141174,0.001,2532.1,2530.8,0.828]
[1769875141382,1.27120167,2534.2,2532.0,13.81808967]
[1769875141590,3.9462223,2534.1,2532.4,0.01571462]
[1769875141787,5.77927569,2534.1,2532.4,1.38338043]
[1769875141992,12.91400537,2534.0,2532.4,1.38338043]
[1769875142286,5.77927569,2534.1,2531.7,13.80237505]
[1769875142287,0.01571462,2533.7,2531.7,13.80237505]
[1769875142488,12.92971999,2533.4,2531.5,0.828]
[1769875142697,12.92971999,2533.2,2531.2,13.80237505]
[1769875142901,0.986933,2533.1,2531.3,0.98763481]
[1769875143096,0.986933,2533.1,2531.4,14.5]
[1769875143299,1.7864385,2533.0,2531.5,1.54876348]
[1769875143500,0.986933,2533.1,2531.5,1.54876348]
[1769875143688,0.986933,2533.1,2531.4,14.03594535]
[1769875143894,2.27985165,2533.3,2531.7,0.24928492]
[1769875144123,0.98687965,2533.3,2531.7,0.24928492]
[1769875144282,0.98666035,2533.9,2532.1,13.81808967]
[1769875144616,0.98666035,2533.9,2532.3,0.01571462]
[1769875144777,16.86049102,2534.0,2532.5,0.98716683]
[1769875144778,2.77138053,2533.8,2532.5,0.98716683]
[1769875144985,0.98646569,2534.3,2532.5,14.05165997]
[1769875145407,0.98646569,2534.3,2532.7,0.01571462]
[1769875145603,0.98744534,2534.4,2532.9,0.01571462]
[1769875145808,0.98744534,2534.4,2533.0,0.828]
[1769875145809,1.78470384,2534.3,2533.0,0.828]
[1769875145982,0.98744534,2534.4,2533.1,0.01571462]
[1769875145983,0.001,2534.4,2533.1,0.01571462]
[1769875146183,0.98743683,2534.4,2533.0,0.828]
[1769875146589,0.001,2534.4,2533.0,0.828]
[1769875146791,0.001,2534.4,2533.3,0.2335703]
[1769875147083,0.001,2534.4,2533.4,0.01571462]
[1769875147280,0.001,2534.4,2533.4,13.51697391]
[1769875147480,0.001,2534.4,2533.3,0.2335703]
[1769875147834,0.001,2534.4,2533.3,0.24928492]
[1769875147980,0.001,2534.4,2533.6,0.01571462]
[1769875148183,0.001,2534.4,2533.5,0.2335703]
[1769875148385,0.001,2534.4,2533.4,0.24928492]
[1769875148695,0.9860377,2535.4,2533.6,0.01571462]
[1769875149027,1.7844106,2535.3,2533.8,0.01571462]
[1769875149176,1.7844106,2535.3,2534.0,0.98654698]
[1769875149379,2.77050878,2535.3,2534.0,0.98654698]
[1769875149576,0.98584329,2535.9,2534.0,0.98654698]
[1769875150205,0.98584329,2535.9,2534.0,1.0022616]
[1769875150405,13.77560426,2535.9,2534.0,1.0022616]
[1769875150612,13.77560426,2535.9,2534.3,0.01571462]
[1769875150613,0.98584329,2535.9,2534.3,0.01571462]
[1769875150823,0.98584329,2535.9,2534.4,0.2335703]
[1769875150998,0.98572667,2536.2,2534.5,0.01571462]
[1769875151206,0.98549353,2536.8,2534.9,0.01571462]
[1769875151390,0.98549353,2536.8,2535.2,0.01571462]
[1769875151590,0.39416925,2536.9,2535.6,0.01571462]
[1769875151893,12.78976097,2537.4,2535.6,0.01571462]
[1769875151894,0.98539999,2537.1,2535.6,0.01571462]
[1769875152107,13.77516096,2537.1,2535.1,0.828]
[1769875152731,13.77516096,2537.1,2535.2,0.24928492]
[1769875152898,13.77516096,2537.1,2535.2,0.2335703]
[1769875153098,13.77521565,2536.9,2535.1,1.814152]
[1769875153316,13.77521565,2536.9,2535.2,0.827]
[1769875153823,13.77521565,2536.9,2535.1,1.81315422]
[1769875154543,5.71347284,2537.0,2535.5,0.01571462]
[1769875154544,2.7570941,2537.0,2535.5,0.01571462]
[1769875154710,0.98544001,2537.0,2535.6,0.24928492]
[1769875154906,13.77474974,2538.1,2535.8,0.01571462]
[1769875155108,13.77474974,2538.1,2536.2,0.98572667]
[1769875155430,12.78976097,2537.9,2536.0,0.827]
[1769875155595,12.78976097,2537.7,2536.0,0.827]
[1769875156015,12.78976097,2537.7,2535.7,0.98590844]
[1769875156334,12.78976097,2537.7,2535.9,0.98583597]
[1769875156635,12.78976097,2537.7,2535.6,0.98594969]
[1769875156940,14.19765868,2537.6,2535.7,0.98589363]
[1769875157099,0.98522167,2537.5,2535.6,3.94382608]
[1769875157299,13.77498264,2537.5,2535.6,3.94382608]
[1769875157533,13.77498264,2537.5,2535.7,0.2335703]
[1769875157894,0.001,2536.7,2535.7,0.2335703]
[1769875158100,0.001,2536.7,2535.7,0.83417876]
[1769875159138,0.001,2536.7,2535.8,0.98588216]
[1769875160231,0.001,2536.7,2535.1,13.50125929]
[1769875160471,0.001,2536.7,2535.6,0.98592652]
[1769875160827,0.001,2536.7,2535.7,0.98591691]
[1769875161023,0.001,2536.7,2535.7,1.47890454]
[1769875161727,0.001,2536.7,2535.7,0.49298763]
[1769875161928,0.001,2536.7,2535.7,0.98591939]
[1769875163540,0.001,2536.7,2535.6,3.94378757]
[1769875163753,0.001,2536.7,2535.5,0.9859717]
[1769875164058,0.001,2536.7,2535.5,1.47898804]
[1769875164374,0.001,2536.7,2535.2,0.827]
[1769875164375,12.79076097,2536.7,2535.2,1.8130936]
[1769875164529,12.79076097,2536.7,2535.2,0.827]
[1769875164860,12.79076097,2536.7,2534.8,0.01571462]
[1769875164861,12.79076097,2536.7,2535.0,0.98618997]
[1769875166663,12.79076097,2536.7,2534.8,0.827]
[1769875166664,13.7753322,2536.6,2534.8,0.827]
[1769875166849,12.78976097,2536.4,2534.9,0.47721937]
[1769875167328,12.78976097,2536.4,2534.8,1.81325532]
[1769875167652,12.78976097,2536.4,2534.8,0.827]
[1769875168029,12.78976097,2536.4,2534.8,1.81325779]
[1769875168337,3.94228494,2536.8,2534.8,1.81325779]
[1769875168338,0.98494996,2538.2,2536.3,0.2335703]
[1769875168529,0.98494996,2538.2,2536.6,0.01571462]
[1769875168731,3.93979985,2538.3,2536.7,0.98553238]
[1769875169254,12.78976097,2538.2,2536.3,0.98566913]
[1769875169470,14.26731892,2538.1,2536.4,1.4502643]
[1769875169655,14.26731892,2538.1,2536.2,1.81270308]
[1769875169656,14.26731892,2538.1,2536.2,0.98570308]
[1769875169855,12.78976097,2537.9,2535.9,1.81283763]
[1769875170060,12.78976097,2537.9,2536.3,0.98568657]
[1769875170263,1.2789761,2537.8,2536.4,0.2335703]
[1769875170733,2.26410631,2537.8,2536.5,0.98561009]
[1769875171142,0.98513021,2537.8,2536.5,0.98561009]
[1769875172663,12.78976097,2537.4,2534.8,0.55469945]
[1769875172848,12.78976097,2537.1,2535.2,0.98609007]
[1769875173051,1.2789761,2537.0,2535.3,0.49462667]
[1769875173539,14.06873707,2537.0,2535.3,0.49462667]
[1769875173961,15.15476097,2536.9,2535.3,0.49462667]
[1769875174162,12.78976097,2536.9,2534.9,0.9862094]
[1769875174368,12.78976097,2536.7,2534.8,1.81227001]
[1769875174732,0.98557123,2536.6,2534.8,1.81227001]
[1769875174934,1.00128585,2536.6,2534.8,0.826]
[1769875175661,12.78976097,2535.8,2534.3,1.37505442]
[1769875175838,12.78976097,2535.6,2534.0,0.9865669]
[1769875176025,12.78976097,2535.6,2533.9,0.98659483]
[1769875176431,12.78976097,2535.6,2533.9,0.98661103]
[1769875176657,1.28054756,2535.5,2533.6,13.50125929]
[1769875177001,1.28054756,2535.5,2533.7,0.98666765]
[1769875177002,0.9860377,2535.4,2533.7,0.98666765]
[1769875179068,12.84045605,2535.3,2533.7,0.01571462]
[1769875179360,13.46152966,2535.3,2533.6,1.81272207]
[1769875180741,13.46152966,2535.3,2533.9,0.0011]
[1769875181151,0.98611549,2535.2,2533.9,0.0011]
[1769875182047,14.21354203,2535.2,2533.9,0.0011]
[1769875182243,1.87790776,2535.1,2533.9,0.0011]
[1769875182557,15.1053343,2535.1,2533.9,0.0011]
[1769875182941,1.60717331,2535.3,2533.9,13.39832361]
[1769875183139,0.98595993,2535.6,2534.2,0.01571462]
[1769875183341,14.21338647,2535.6,2534.2,0.4964199]
[1769875183637,14.21338647,2535.6,2533.9,0.0011]
[1769875183860,14.21338647,2535.6,2534.0,0.98657319]
[1769875184450,14.21338647,2535.6,2533.9,0.98770286]